Cogmind - Beta 11 @@@ ROGUE MODE // 2022.03.23 @ 22:23:59 Player: Ciaphas Result: Self-destructed Performance ------------- Evolutions (2) 1000 Regions Visited (5) 1000 Robots Destroyed (77) 385 Value Destroyed (2178) 2178 Prototype IDs (25) 500 Alien Tech Used (0) 0 Bonus (642) 642 TOTAL SCORE: 5705 Bonus ------- High Alert Combat Kills 226 Follower Combat Kills 116 Aligned with FarCom 300 Cogmind --------- Core Integrity 188/550 Matter 262/300 Energy 160/160 System Corruption 7% Temperature Cool (0) Movement Core (350) Ox6 Location -8/Materials Parts ------- > --- POWER (1) -------- Light Nuclear Core > --- PROPULSION (4) --- (None) > --- UTILITY (4) ------ Improved Heat Sink Medium Storage Unit Improved Signal Interpreter Advanced Targeting Computer > --- WEAPON (2) ------- Blade Saw Makeshift Axe > --- INVENTORY (10) --- Medium Matter Pod (100) Advanced Visual Processing Unit Hacking Suite AWS/Thermal Peak State ------------ > --- POWER ------------ Light Nuclear Core > --- PROPULSION ------- Aluminum Leg Aluminum Leg Aluminum Leg Aluminum Leg > --- UTILITY ---------- Improved Heat Sink Medium Storage Unit Improved Signal Interpreter Advanced Targeting Computer > --- WEAPON ----------- AWS/Thermal > --- INVENTORY -------- Compact Wheel Medium Matter Pod Advanced Visual Processing Unit Hacking Suite Improved Medium Laser Heavy Particle Gun Shock Bomb Launcher Makeshift Axe [Rating: 35] Favorites ----------- Power Light Ion Engine Engine Light Ion Engine Power Core Light Nuclear Core Propulsion Aluminum Leg Treads Light Treads Leg Aluminum Leg Wheel Compact Wheel Utility Medium Storage Unit Device Improved Heat Sink Storage Medium Storage Unit Processor Signal Interpreter Protection Light Armor Plating Weapon Light Assault Rifle Energy Gun AWS/Thermal Energy Cannon Beam Cannon Ballistic Gun Light Assault Rifle Launcher Grenade Launcher Special Weapon Mining Laser Slashing Weapon Blade Saw Build | -11 -10 -10 -10 -9 -8 ------- Run | Scr Mat Min Exi Min Mat Slots Evolved 4 | . . . . . 4 Power . | . . . . . . Propulsion 2 | . . . . . 2 Utility 2 | . . . . . 2 Weapon . | . . . . . . Parts Attached 76 | 2 15 5 3 4 47 Power 11 | . 2 . 1 . 8 Engine 6 | . 2 . 1 . 3 Core 5 | . . . . . 5 Reactor . | . . . . . . Propulsion 24 | . 5 1 . 2 16 Treads 1 | . . . . . 1 Leg 19 | . 5 1 . 1 12 Wheel 4 | . . . . 1 3 Hover . | . . . . . . Flight . | . . . . . . Utility 15 | 1 2 1 2 1 8 Device 6 | 1 . . 1 . 4 Storage 1 | . 1 . . . . Processor 5 | . 1 1 . . 3 Hackware . | . . . . . . Protection 3 | . . . 1 1 1 Artifact . | . . . . . . Weapon 26 | 1 6 3 . 1 15 Energy Gun 7 | . 1 1 . 1 4 Energy Cannon 4 | . . 1 . . 3 Ballistic Gun 5 | 1 4 . . . . Ballistic Cannon . | . . . . . . Launcher 5 | . . 1 . . 4 Special Weapon 1 | . 1 . . . . Impact Weapon . | . . . . . . Slashing Weapon 4 | . . . . . 4 Piercing Weapon . | . . . . . . Special Melee Weapon . | . . . . . . Unidentified Prototypes 2 | . . . . . 2 Corrupted Parts 1 | . . . . . 1 System Corruption 5 | . . . . . 5 Parts Lost 20 | . 1 . . . 19 Power 4 | . 1 . . . 3 Propulsion 11 | . . . . . 11 Utility 2 | . . . . . 2 Weapon 3 | . . . . . 3 Highest Loss Streak 14 | . 1 . . . 14 To Critical Strikes . | . . . . . . Average Slot Usage (%) 93 | . 99 100 99 86 89 Engine 9 | . 13 14 14 14 3 Core 2 | . . . . . 5 Leg 25 | . 28 28 28 15 24 Wheel 4 | . . . . 12 7 Device 8 | . 5 . 7 1 15 Storage 12 | . 14 14 14 14 9 Processor 7 | . 8 14 5 . 7 Protection 3 | . . . . 12 3 Energy Gun 7 | . 1 7 14 14 8 Energy Cannon 3 | . . 13 14 1 2 Ballistic Gun 8 | . 26 1 . . . Naked Turns . | . . . . . . Heaviest Build 33 | 11 17 19 20 24 33 Greatest Support 40 | 20 20 20 20 20 40 Greatest Overweight (x) 1 | . . . . 1 1 Average Overweight (x) . | . . . . . . Largest Inventory Capacity 10 | 8 10 10 10 10 10 Average Capacity 9 | 8 8 10 10 10 10 Most Carried 10 | 7 10 10 10 10 10 Average Carried 8 | 5 7 9 9 8 8 Final Capacity 10 | 8 10 10 10 10 10 Final Carried 10 | 3 9 10 9 8 5 Class Distribution -------------------- 52% | Scavenger-Mutant 47% | Mutant Dominant Class ---------------- Mutant | -10/Materials Scavenger-Mutant | -10/Mines Scavenger-Mutant | -10/Exiles Mutant | -9/Mines Scavenger-Mutant | -8/Materials Resources | -11 -10 -10 -10 -9 -8 ----------- Run | Scr Mat Min Exi Min Mat Matter Collected 1132 | 228 362 31 . 100 411 Remotely . | . . . . . . Salvage Created 2768 | 73 481 88 . 249 1877 Parts 165 | 3 36 4 . 14 108 Haulers Intercepted 3 | . 2 . . . 1 Recyclers Shooed . | . . . . . . Parts Field Recycled . | . . . . . . Retrieved Matter . | . . . . . . Parts Self-Destructed . | . . . . . . Prevented . | . . . . . . Kills | -11 -10 -10 -10 -9 -8 ------- Run | Scr Mat Min Exi Min Mat Combat Hostiles Destroyed 68 | . 12 2 . 16 38 Melee 4 | . . . . . 4 Guns 53 | . 12 . . 15 26 Cannons 4 | . . 2 . 1 1 AOE 6 | . . . . . 6 Classes Destroyed 14 | 2 4 . . 2 6 Worker 2 | . . . . . 2 Builder 1 | . . . . . 1 Tunneler 1 | 1 . . . . . Hauler 3 | . 2 . . . 1 Recycler 4 | 1 . . . . 3 Operator 2 | . . . . . 2 Watcher 5 | . 2 . . . 3 Swarmer 21 | . 6 . . 5 10 Cutter 2 | . . . . . 2 Grunt 28 | . 6 2 . . 20 Brawler 1 | . . . . . 1 Sentry 5 | . . . . . 5 Demolisher 2 | . . . . 2 . Assembled 9 | . . . . 9 . Best Kill Streak 11 | 2 5 2 . 7 11 Combat Bots Only 8 | . 4 2 . 7 8 Max Kills in Single Turn 4 | 1 1 1 . 2 4 Gunslinging . | . . . . . . Exploded 3 | . . . . . 3 Melee 1 | . . . . . 1 Uniques/NPCs Destroyed . | . . . . . . Combat | -11 -10 -10 -10 -9 -8 -------- Run | Scr Mat Min Exi Min Mat Damage Taken 2774 | . 486 26 . 315 1947 Core 512 | . 105 . . 45 362 Absorbed by Shields . | . . . . . . Core Remaining (%) 70 | 100 . . . 40 . Volleys Fired 129 | 4 67 4 . 7 47 Largest 2 | 2 2 1 . 2 2 Hottest 125 | 40 100 60 . 125 120 Shots Fired 326 | 8 133 4 . 55 126 Gun 298 | 8 132 . . 48 110 Cannon 21 | . . 4 . 7 10 Launcher 6 | . . . . . 6 Special 1 | . 1 . . . . Kinetic 136 | 8 128 . . . . Thermal 184 | . 5 4 . 55 120 Explosive 1 | . . . . . 1 Electromagnetic 5 | . . . . . 5 Robot Hit Streak 19 | 2 7 3 . 10 19 Robot Miss Streak 3 | 3 3 1 . 3 3 Penetration Max . | . . . . . . Secondary Targets 1 | . . . . . 1 Max Gunslinging Chain 1 | . . . . . 1 Autonomous 93 | . . . . 41 52 Shots Hit Robots 225 | 4 84 3 . 31 103 Core Hits 132 | 4 38 3 . 20 67 Critical Kills . | . . . . . . Critical Parts Destroyed 2 | . 2 . . . . Critical Strikes 4 | . 2 . . . 2 Destroy 2 | . 2 . . . . Sever 2 | . . . . . 2 Melee Attacks 14 | . . . . . 14 Impact . | . . . . . . Slashing 14 | . . . . . 14 Piercing . | . . . . . . Sneak Attacks 3 | . . . . . 3 Combat Hostiles . | . . . . . . Follow-up Attacks 1 | . . . . . 1 Damage Inflicted 5278 | 51 702 55 . 852 3618 Guns 3644 | 51 702 . . 763 2128 Cannons 331 | . . 55 . 88 188 Explosions 831 | . . . . . 831 Melee 467 | . . . . . 467 Ramming 5 | . . . . 1 4 Kinetic 706 | 51 655 . . . . Thermal 3269 | . 47 55 . 851 2316 Explosive 547 | . . . . . 547 Electromagnetic 284 | . . . . . 284 Impact . | . . . . . . Slashing 467 | . . . . . 467 Piercing . | . . . . . . Highest Corruption 7 | . . . . . 7 Average Corruption 1 | . . . . . 1 Corruption Purged . | . . . . . . Corruption Blocked . | . . . . . . Effects 5 | . . . . . 5 Matter Fused 4 | . . . . . 4 Heat Flow Errors 1 | . . . . . 1 Overload Shots . | . . . . . . Overflow Damage 79 | . . . . . 79 Projectiles 5 | . . . . . 5 Explosions 72 | . . . . . 72 Melee 2 | . . . . . 2 Knockbacks . | . . . . . . Impact . | . . . . . . Kinetic . | . . . . . . Secondary . | . . . . . . Self-Inflicted Damage 153 | . . . . . 153 Shots 4 | . . . . . 4 Rammed 2 | . . . . 1 1 Targets Rammed 2 | . . . . 1 1 Kicked . | . . . . . . Crushed . | . . . . . . Highest Temperature 187 | . 154 95 . 187 106 Average Temperature 48 | . 34 47 . 74 44 Received Heat Transfer 1119 | . 174 15 . 129 801 Siege Activations . | . . . . . . Robots Corrupted . | . . . . . . Combat Hostiles . | . . . . . . Parts Fried . | . . . . . . Impact Corruptions . | . . . . . . Robots Melted 1 | . . . . . 1 Combat Hostiles 1 | . . . . . 1 Parts Melted 7 | . . . . 2 5 Heat Transferred 4944 | . 60 111 . 1184 3589 Parts Sabotaged . | . . . . . . Parts Stolen . | . . . . . . Parts Stripped . | . . . . . . Power Chain Reactions . | . . . . . . Missiles Intercepted . | . . . . . . Alert | -11 -10 -10 -10 -9 -8 ------- Run | Scr Mat Min Exi Min Mat Peak Influence 914 | 10 289 113 . 357 914 Initial 63 | . 6 63 . . 61 Average 211 | 7 127 94 . 144 338 Maximum Alert Level 3 | . 1 . . 1 3 Low Security (%) 65 | 100 81 100 . 71 42 Level 1 15 | . 18 . . 28 11 Level 2 13 | . . . . . 33 Level 3 4 | . . . . . 11 Level 4 . | . . . . . . Level 5 . | . . . . . . High Security . | . . . . . . Max Security . | . . . . . . Squads Dispatched 10 | . 4 . . . 6 Investigation 2 | . 2 . . . . Extermination . | . . . . . . Reinforcement 7 | . 2 . . . 5 Assault 1 | . . . . . 1 Garrison . | . . . . . . Intercept . | . . . . . . Searches Triggered . | . . . . . . Construction Impeded . | . . . . . . Haulers Reinforced . | . . . . . . Active Scanning Responses . | . . . . . . Cargo Convoy Interrupts . | . . . . . . Stealth | -11 -10 -10 -10 -9 -8 --------- Run | Scr Mat Min Exi Min Mat Distress Signals 2 | . 1 . . . 1 Communications Jammed . | . . . . . . Distress Signals . | . . . . . . Times Spotted 106 | . 27 2 . 22 55 Peak Tracking Total 8 | . 5 2 . 7 8 Tactical Retreats 5 | . 2 . . . 3 Traps | -11 -10 -10 -10 -9 -8 ------- Run | Scr Mat Min Exi Min Mat Traps Triggered 5 | . 2 . . . 3 Indirectly . | . . . . . . Trap Hack Attempts . | . . . . . . Triggered . | . . . . . . Disarmed . | . . . . . . Reprogrammed . | . . . . . . Reused . | . . . . . . Traps Extracted . | . . . . . . Installed . | . . . . . . Triggered . | . . . . . . Machines | -11 -10 -10 -10 -9 -8 ---------- Run | Scr Mat Min Exi Min Mat Machines Disabled 5 | . . . . . 5 Max in Single Turn 1 | . . . . . 1 Garrison Access 1 | . . . . . 1 Machines Sabotaged . | . . . . . . Garrisons Compromised . | . . . . . . Overloaded Fab Kills . | . . . . . . Hacking | -11 -10 -10 -10 -9 -8 --------- Run | Scr Mat Min Exi Min Mat Machines Accessed 13 | . 8 . 1 . 4 Terminals 9 | . 6 . . . 3 Fabricators . | . . . . . . Repair Stations . | . . . . . . Recycling Units 3 | . 2 . . . 1 Scanalyzers . | . . . . . . Garrison Access . | . . . . . . Total Hacks 41 | . 23 . 1 . 17 Successful 26 | . 15 . 1 . 10 Failed 15 | . 8 . . . 7 Catastrophic . | . . . . . . Database Lockouts . | . . . . . . Manual 31 | . 16 . 1 . 14 Terminals 30 | . 19 . . . 11 Fabricators . | . . . . . . Repair Stations . | . . . . . . Recycling Units 10 | . 4 . . . 6 Scanalyzers . | . . . . . . Garrison Access . | . . . . . . Terminal Hacks 10 | . 6 . 1 . 3 Robot Analysis 4 | . 4 . . . . Alert Level 4 | . 2 . . . 2 Unreport Threat 1 | . . . . . 1 EX-Prototype ID Bank 1 | . . . 1 . . Fabricator Hacks . | . . . . . . Repair Station Hacks . | . . . . . . Recycling Unit Hacks 4 | . 1 . . . 3 Report Inventory 3 | . 1 . . . 2 Retrieve Components 1 | . . . . . 1 Scanalyzer . | . . . . . . Garrison Access Hacks . | . . . . . . Unauthorized Hacks 12 | . 8 . . . 4 Terminals 10 | . 7 . . . 3 Track 3 | . 3 . . . . Botnet 4 | . 2 . . . 2 Disrupt 1 | . 1 . . . . Operators 2 | . 1 . . . 1 Fabricators . | . . . . . . Repair Stations . | . . . . . . Recycling Units 2 | . 1 . . . 1 Reject 1 | . . . . . 1 Tunnel 1 | . 1 . . . . Scanalyzers . | . . . . . . Garrison Access . | . . . . . . Data Cores Recovered . | . . . . . . Used . | . . . . . . Hacking Detections 11 | . 7 . . . 4 Full Trace Events . | . . . . . . Feedback Events . | . . . . . . Feedback Blocked . | . . . . . . Robot Schematics Acquired . | . . . . . . Robots Built . | . . . . . . Authchips . | . . . . . . Time . | . . . . . . Total Robot Build Rating . | . . . . . . Part Schematics Acquired . | . . . . . . Parts Built . | . . . . . . Authchips . | . . . . . . Time . | . . . . . . Total Part Build Rating . | . . . . . . Parts Repaired . | . . . . . . Time . | . . . . . . Parts Recycled . | . . . . . . Recycled Matter . | . . . . . . Retrieved Matter . | . . . . . . Retrieved Components 3 | . . . . . 3 Parts Scanalyzed . | . . . . . . Part Schematics Acquired . | . . . . . . Parts Damaged . | . . . . . . Bothacking | -11 -10 -10 -10 -9 -8 ------------ Run | Scr Mat Min Exi Min Mat Used RIF Installer . | . . . . . . Robots Hacked . | . . . . . . Non-combat . | . . . . . . Combat . | . . . . . . Robot Hacks Applied . | . . . . . . Relay Couplers Released 3 | . . . . . 3 Machine Destruction 3 | . . . . . 3 Fabnet Peak Effective % . | . . . . . . Robots Rewired . | . . . . . . Allies Hacked . | . . . . . . Hacks Repelled . | . . . . . . Allies | -11 -10 -10 -10 -9 -8 -------- Run | Scr Mat Min Exi Min Mat Total Allies 3 | . . . . 3 . Largest Group 3 | . . . . 3 1 Highest-Rated Group 40 | . . . . 40 16 Highest-Rated Ally 16 | . . . . 16 16 Total Orders 1 | . . . . . 1 ROAM 1 | . . . . . 1 Ally Attacks 38 | . . . . 33 5 Total Damage 391 | . . . . 347 44 Kills 7 | . . . . 6 1 Allies Corrupted . | . . . . . . Allies Melted . | . . . . . . Intel | -11 -10 -10 -10 -9 -8 ------- Run | Scr Mat Min Exi Min Mat Robot Analysis Total 4 | . 4 . . . . Derelict Logs Recovered 2 | . . . . 2 . Drone Launches . | . . . . . . Drone Recoveries . | . . . . . . Exploration | -11 -10 -10 -10 -9 -8 ------------- Run | Scr Mat Min Exi Min Mat Turns Passed 3233 | 47 1038 223 293 436 1196 Spaces Moved 2078 | 24 639 169 239 311 696 Core . | . . . . . . Treads . | . . . . . . Legs 1396 | 24 639 169 239 15 310 Wheels 682 | . . . . 296 386 Hover . | . . . . . . Flight . | . . . . . . Fastest Speed 90 | 120 120 120 120 115 90 Average Speed 118 | 120 120 120 120 115 116 Slowest Speed 190 | 120 120 120 120 120 190 Overloaded Moves . | . . . . . . Propulsion Burnouts . | . . . . . . Robots Hopped . | . . . . . . Cave-ins Triggered . | . . . . . . Exploration Rate (%) 55 | 4 98 30 61 76 61 Regions Visited 5 Branch Regions 3 Pre-discovered Areas 3 | . 1 . . 2 . Known Exits Taken 1 | . 1 . . . . Unknown Exits Taken 4 | 1 . 1 1 1 . Scrap Searched 2 | . . 1 . 1 . Spaces Dug 52 | . 1 . . . 51 Terrain Destroyed 75 | . 1 . . 17 57 Melee . | . . . . . . Projectile 24 | . 1 . . 17 6 AOE 51 | . . . . . 51 Terrain Rammed . | . . . . . . Walls Destroyed . | . . . . . . Machines Disabled . | . . . . . . Actions | -11 -10 -10 -10 -9 -8 --------- Run | Scr Mat Min Exi Min Mat Total 2629 | 36 804 186 246 375 982 Wait 251 | 2 57 2 . 46 144 Move 2073 | 23 638 168 238 310 696 Hop . | . . . . . . Pick Up 33 | 1 12 2 1 2 15 Fast Attach 18 | 1 2 1 . . 14 Attach 22 | . 1 2 2 1 16 Detach 9 | . . 2 2 2 3 Swap 36 | 1 12 2 1 3 17 Drop 43 | 4 15 3 2 3 16 Fire 129 | 4 67 4 . 7 47 Melee 13 | . . . . . 13 Ram 2 | . . . . 1 1 Kick . | . . . . . . Crush . | . . . . . . Escape Stasis . | . . . . . . Rewire . | . . . . . . Trap . | . . . . . . Miscellaneous . | . . . . . . Route ------- -11/Scrapyard -10/Materials (discovered 3 exits: *Mat x2 / *Min) -10/Mines (discovered 2 exits: *Mat / *Exi) -10/Exiles -9/Mines -8/Materials (discovered 1 exit: [*Fac]) History --------- Turn | Location | Event 3 | -11/Scrapyard | Discovered new exit (range 3) 48 | -11/Scrapyard | Entered Materials 121 | -10/Materials | Discovered new exit (range 13) 317 | -10/Materials | Build established: Mutant 615 | -10/Materials | Discovered new exit (range 16) 631 | -10/Materials | Identified exit to Materials 767 | -10/Materials | Discovered exit to Materials (range 10) 1085 | -10/Materials | Identified exit to Mines 1086 | -10/Materials | Entered Mines 1146 | -10/Mines | Met a Derelict bent on vengeance 1192 | -10/Mines | Discovered exit to Materials (range 10) 1288 | -10/Mines | Deemed a non-threat by the Exiles lab entrance 1289 | -10/Mines | Discovered new exit (range 5) 1309 | -10/Mines | Entered Exiles 1339 | -10/Exiles | Met 8R-AWN 1359 | -10/Exiles | Met EX-HEX 1396 | -10/Exiles | Met EX-BIN 1410 | -10/Exiles | Aligned with FarCom system 1411 | -10/Exiles | Given EX-Vault access code 1441 | -10/Exiles | Opened EX-Vault 1452 | -10/Exiles | Found AWS/Thermal 1474 | -10/Exiles | Build established: Scavenger-Mutant 1479 | -10/Exiles | Warned to stay clear of 0b10 Research branches 1514 | -10/Exiles | Met EX-DEC 1587 | -10/Exiles | Discovered new exit (range 14) 1602 | -10/Exiles | Left Exiles lab with AWS/Thermal 1602 | -10/Exiles | Entered Mines 1603 | -9/Mines | Assembled infested the area 1613 | -9/Mines | Learned location of Zion (-6) 1643 | -9/Mines | Core integrity fell below 50% 1672 | -9/Mines | Assisted by bots powering up and referring to "LRC-V3" 1691 | -9/Mines | Destroyed 7 combat bots 1840 | -9/Mines | Learned location of Recycling (-9) 1937 | -9/Mines | Build established: Mutant 1970 | -9/Mines | A weapon hastily lodged in a ceiling crevice suddenly fell to the ground 2031 | -9/Mines | Discovered new exit (range 6) 2038 | -9/Mines | Entered Materials 2038 | -8/Materials | Accompanied by 1 ally 2038 | -8/Materials | Evolved 4 slots: Propulsion x2, Utility x2 2335 | -8/Materials | Build established: Scavenger-Mutant 2608 | -8/Materials | Destroyed 8 combat bots 2726 | -8/Materials | Discovered new exit (range 11) 3167 | -8/Materials | Destroyed 8 combat bots 3186 | -8/Materials | Core integrity fell below 50% 3234 | -8/Materials | Self-destructed Last Messages --------------- 03186_ The unstable cave ceiling collapses. 03187_ Destroyed Imp. Heat Sink. 03189_ G-47 Trooper destroyed. 03199_ K-01 Serf cleans the Matter Pump. 03204_ Sneak attack on A-02 Transporter. 03204_ Blade Saw follow-up attack on A-02 Transporter. 03204_ A-02 Transporter Lgt. Treads severed. 03207_ Wheel destroyed. 03208_ Acquired Lgt. Treads. 03209_ M-28 Smith fits Backup Laser III on G-47 Trooper. 03216_ System corrupted: Matter fused (-8). 03217_ Shock Bomb Launcher destroyed. 03219_ G-50 Soldier IFF system glitched. 03231_ Com. Wheel destroyed. 03231_ Lgt. Treads destroyed. 03231_ Critical hit (Burn: +37). 03232_ G-50 Soldier heat short circuits Hvy. Laser. Map ----- +----------------------------------------------------+ | | | | | | | | | | | | | | | | | | | | | ?????????????????????????????????????????????????? | | ?????????????????????????????????????????????????? | | ?????????????????????????????????????????????????? | | ?????????????????????????????????????????????????? | | ?????????????????????????????????????????????????? | | ????????????????????Y????????????????????????????? | | ?????????????????????????????????????????????????? | | ?????????????????????????????????????????????????? | | ?????????????????????????????????????????????????? | | ?????????????????????????????????????????????????? | | ?????????????????????#????????????????????????? #? | | ?????????????????????# ??????????????????????? #? | | ?????????????????????# ????????????##+###### #? | | ????????????????????## #???????????# #? | | ?????????????????#+## ############ ## | | ?????????????# ] g @ g | | ?????????????# m T ############ | | ?????????????# ##### ??### ##*##g | | ????????????????????######## # *=[=%% %"" """ " | | ???????????????????????# =%===%! """ """ " | | ???????????????????????# "S ! =[%*%#* """ """ " | | ???????????????H???????# """ =|%*%/= | | ???????????????????????# "" [ %][#% | | ???????????????????????# *#g # | | ???????????????????????## # !! # ######+### | | ????????????????????????## ###### #????????? | | ?????????????????????????### % + #????????? | | ???????????????????????????# %%# #????????? | | ???????????????????????????# "" # #????????? | | ???????????????????????????# """ # #????????? | | ???????????????????????????# """ # #????????? | | ???????????????????????????# """ # #????????? | | ???????????????????????????# # #????????? | | ???????????????????????????# # ########## | | ???????????????????????????# # [ | | ???????????????????????????########## *% | | ????????????????????????????????????# *%= | | ????????????????????????????????????######### * | | ????????????????????????????????????????????# = | | ???????????????????????????????????????????## % | +----------------------------------------------------+ Best States ------------- Heat Dissipation 67 Energy Generation 14 Energy Capacity 265 Matter Stores 300 Matter Capacity 300 Sight Range 18 Terrain Scan Range 16 Terrain Scan Density 10 Armor Coverage 150 Evasion (%) 55 Targeting Accuracy 8 Target Analysis 5 Recoil Reduction 1 Item Schematics ----------------- None Robot Schematics ------------------ None Fabricated ------------ Nothing Alien Tech Used ----------------- None Achievements -------------- None Challenges ------------ None Game ------ Seed ControlBurstSuperbattery Manual? 0 Play Time 01:03:40 Cumulative 13.7 hours Start 2022.03.23 @ 21:15:08 End 2022.03.23 @ 22:23:59 Sessions 1 Manual Loads 0 Difficulty Rogue Special Mode None Game No. 16 Rogue 9 Adventurer 7 Explorer 0 Win Type - Total 0 Types 0/0/0/0/0/0/0/0/0 Lore% 22 Gallery% 18 Achievement% 20 Wizard Run 0 Options --------- ASCII 1 Keyboard 0 Movement Mouse Keybinds 0 Fullscreen 2 Font 24/Proggy Map View 50x50 Tactical HUD 1 Map Filters NONE Filters NONE Steam 1 RUN: 0c43ba85-72f8-4c4e-8c3d-06eb68b75001